Cogmind - Beta 15 @@@ ROGUE MODE // 2025.06.18 @ 16:58:13 Player: 7604 Result: Destroyed by Enhanced Grunt with Neutron Cannon Performance ------------- Evolutions (4) 2000 Regions Visited (8) 1600 Robots Destroyed (83) 415 Value Destroyed (2517) 2517 Prototype IDs (37) 740 Alien Tech Used (0) 0 Bonus (998) 998 TOTAL SCORE: 8270 Bonus ------- Registered with UFD 300 Met Optimus in HQ 500 Met Data Miner 300 Friendly Fire -102 Cogmind --------- Core Integrity 0/850 Matter 223/300 Energy 35/100 System Corruption 5% Temperature Cool (1) Movement Walking (190) Ox1 Location -6/Data Miner Parts ------- > --- POWER (2) -------- (None) > --- PROPULSION (4) --- Carbon-fiber Leg > --- UTILITY (7) ------ Large Storage Unit Improved Signal Interpreter Makeshift Salvage Targeting Computer > --- WEAPON (2) ------- (None) > --- INVENTORY (15) --- Makeshift ECM Suite Gun Armor Improved Hacking Suite A0-MCA's Component Scanner Disruptor Cannon Magnetic Acceleration Cannon Mini Grenade Launcher Remote Datajack CPS Tube (2) Heavy Pick Peak State ------------ > --- POWER ------------ Light Angular Momentum Engine Light Angular Momentum Engine > --- PROPULSION ------- Carbon-fiber Leg Carbon-fiber Leg Carbon-fiber Leg Improved VSS Leg > --- UTILITY ---------- Advanced Heat Sink Large Storage Unit Advanced Sensor Array Improved Signal Interpreter Target Analyzer Improved Reaction Control System Reflective Plating > --- WEAPON ----------- Magnetic Acceleration Cannon Heavy Pick > --- INVENTORY -------- Improved Deuterium Engine Carbon-fiber Leg Makeshift Salvage Targeting Computer Makeshift ECM Suite Hardened Medium Armor Plating Gun Armor Reflective Plating Remote Shield Improved Hacking Suite A0-MCA's Component Scanner Heavy Laser Disruptor Cannon Mini Grenade Launcher Remote Datajack CPS Tube [Rating: 65] Favorites ----------- Power Light Angular Momentum Engine Engine Light Angular Momentum Engine Propulsion Armored Leg Treads Light Treads Leg Armored Leg Wheel Subdweller Monowheel Utility Seismic Detector Device Seismic Detector Storage Huge Storage Unit Processor Target Analyzer Hackware System Shield Protection Reflective Plating Weapon Datajack Energy Gun Small Laser Energy Cannon Subdweller Beam Cannon Ballistic Gun Light Assault Rifle Ballistic Cannon Magnetic Acceleration Cannon Launcher Mini Grenade Launcher Special Weapon Mining Laser Slashing Weapon Great Axe Piercing Weapon Heavy Pick Special Melee Weapon Datajack Build | -11 -10 -10 -8 -8 -6 -6 -6 -6 ------- Run | Yrd Mat Sub Rec Scr Fac Low Low Dat Slots Evolved 8 | . . . . . 8 . . . Power 1 | . . . . . 1 . . . Propulsion 2 | . . . . . 2 . . . Utility 5 | . . . . . 5 . . . Weapon . | . . . . . . . . . Parts Attached 96 | 1 7 20 3 6 51 2 1 5 Power 10 | . . 2 . 1 7 . . . Engine 10 | . . 2 . 1 7 . . . Core . | . . . . . . . . . Reactor . | . . . . . . . . . Propulsion 28 | . 2 7 1 2 15 . . 1 Treads 6 | . 2 1 . . 3 . . . Leg 12 | . . . . 2 9 . . 1 Wheel 10 | . . 6 1 . 3 . . . Hover . | . . . . . . . . . Flight . | . . . . . . . . . Utility 30 | 1 2 2 1 2 20 . . 2 Device 10 | 1 . 1 . 1 7 . . . Storage 3 | . 2 . . 1 . . . . Processor 4 | . . . . . 3 . . 1 Hackware 4 | . . . 1 . 3 . . . Protection 9 | . . 1 . . 7 . . 1 Artifact . | . . . . . . . . . Weapon 28 | . 3 9 1 1 9 2 1 2 Energy Gun 8 | . 1 3 . . 4 . . . Energy Cannon 4 | . . 3 . . 1 . . . Ballistic Gun 5 | . . 2 . . 2 . . 1 Ballistic Cannon 1 | . . . . . . 1 . . Launcher 4 | . 1 1 . . 2 . . . Special Weapon 2 | . 1 . . . . . . 1 Impact Weapon . | . . . . . . . . . Slashing Weapon 2 | . . . . 1 . 1 . . Piercing Weapon 1 | . . . . . . . 1 . Special Melee Weapon 1 | . . . 1 . . . . . Unidentified Prototypes . | . . . . . . . . . Parts Lost 51 | . . 6 . . 30 . . 15 Power 8 | . . 1 . . 4 . . 3 Propulsion 16 | . . 4 . . 8 . . 4 Utility 19 | . . 1 . . 12 . . 6 Weapon 8 | . . . . . 6 . . 2 Highest Loss Streak 15 | . . 2 . . 14 . . 15 To Critical Strikes . | . . . . . . . . . Average Backups 16 | 6 6 18 24 18 11 14 15 14 Power 1 | 1 1 2 2 1 . 1 1 . Propulsion 1 | 4 . 2 3 1 . . 1 . Utility 5 | . . 1 5 10 5 7 7 6 Weapon 6 | 1 4 11 13 5 2 2 3 4 Tool/Special . | . . . . . . . . . Unused Backups 31 | . 7 2 3 12 3 . . 4 Power 2 | . 1 . . 1 . . . . Propulsion 7 | . 4 1 . 2 . . . . Utility 7 | . 1 . . 3 . . . 3 Weapon 13 | . 1 1 3 5 3 . . . Tool/Special 2 | . . . . 1 . . . 1 Average Slot Usage (%) 97 | . 99 99 100 98 88 96 100 97 Engine 13 | . 14 13 14 14 11 13 13 12 Treads 8 | . 24 17 . . 2 . . . Leg 12 | . 3 . . 22 14 26 26 25 Wheel 6 | . . 10 28 5 5 . . . Device 14 | . 13 13 14 14 11 20 20 19 Storage 11 | . 14 14 14 14 6 6 6 6 Processor 2 | . . . . . 6 13 13 13 Hackware 1 | . . . . . 8 . . . Protection 2 | . . . . . 7 6 6 5 Energy Gun 4 | . 13 7 . . 2 2 . . Energy Cannon 4 | . . 12 25 . . . . . Ballistic Gun 4 | . 14 6 . . 3 2 . 3 Special Weapon 3 | . . 1 . 10 . . . 2 Slashing Weapon 1 | . . . . 1 2 . 4 . Special Melee Weapon 4 | . . . 1 14 1 . . . Peak Build Rating 65 | 7 7 18 18 28 62 64 65 65 Average Rating 26 | 6 6 12 15 23 47 61 64 62 On Entrance 29 | 6 7 7 16 15 27 62 64 65 Naked Turns . | . . . . . . . . . Heaviest Build 105 | 13 88 105 102 96 64 57 57 57 Greatest Support 62 | 20 40 40 40 40 62 60 60 60 Greatest Overweight (x) 9 | . 2 9 2 4 6 . . 1 Average Overweight (x) 1 | . 1 2 2 1 . . . . Largest Inventory Capacity 25 | 8 25 25 25 25 15 15 15 15 Average Capacity 21 | 8 22 25 25 22 15 15 15 15 Most Carried 25 | 7 9 25 25 25 15 15 15 15 Average Carried 16 | 6 6 18 24 18 11 14 14 14 Final Capacity 25 | 8 25 25 25 15 15 15 15 15 Final Carried 25 | 7 9 25 25 15 13 15 15 10 Class Distribution -------------------- 65% | Mutant 30% | Scavenger-Mutant 4% | Hacker-Mutant Dominant Class ---------------- Mutant | -10/Materials Mutant | -10/Subcaves Mutant | -8/Recycling Mutant | -8/Scraptown Scavenger-Mutant | -6/Factory Scavenger-Mutant | -6/Lower Caves Scavenger-Mutant | -6/Lower Caves Scavenger-Mutant | -6/Data Miner Resources | -11 -10 -10 -8 -8 -6 -6 -6 -6 ----------- Run | Yrd Mat Sub Rec Scr Fac Low Low Dat Matter Collected 2355 | 215 111 580 20 109 1071 192 57 . Remotely . | . . . . . . . . . Salvage Created 3234 | 78 272 615 . . 2117 152 . . Parts 180 | 5 28 46 . . 100 1 . . Haulers Intercepted 2 | . 1 . . . 1 . . . Recyclers Shooed 3 | . . . . . 3 . . . Parts Field Recycled . | . . . . . . . . . Retrieved Matter . | . . . . . . . . . Parts Self-Destructed 20 | . . 20 . . . . . . Prevented 3 | . . . . . . . 3 . Kills | -11 -10 -10 -8 -8 -6 -6 -6 -6 ------- Run | Yrd Mat Sub Rec Scr Fac Low Low Dat Combat Hostiles Destroyed 56 | . 6 19 . . 31 . . . Melee 6 | . . . . . 6 . . . Guns 26 | . 4 7 . . 15 . . . Cannons 7 | . . 7 . . . . . . AOE 13 | . 2 4 . . 7 . . . Classes Destroyed 17 | 2 4 3 . . 8 . . . Worker 5 | . 2 . . . 3 . . . Builder 6 | . . . . . 6 . . . Tunneler 3 | 1 1 . . . 1 . . . Hauler 2 | . 1 . . . 1 . . . Recycler 6 | 1 1 . . . 4 . . . Mechanic 1 | . . . . . 1 . . . Operator 1 | . . . . . 1 . . . Turret 2 | . . 2 . . . . . . Watcher 1 | . 1 . . . . . . . Swarmer 12 | . 6 6 . . . . . . Grunt 23 | . . . . . 23 . . . Brawler 1 | . . . . . 1 . . . Duelist 1 | . . . . . 1 . . . Sentry 3 | . . . . . 3 . . . Programmer 3 | . . . . . 3 . . . Artisan 3 | . . 3 . . . . . . Subdweller 13 | . . 13 . . . . . . Best Kill Streak 14 | 2 4 6 . . 14 . . . Combat Bots Only 5 | . 3 4 . . 5 . . . Max Kills in Single Turn 6 | 1 2 2 . . 6 . . . Gunslinging . | . . . . . . . . . Exploded 2 | . 1 2 . . 2 . . . Melee 1 | . . . . . 1 . . . Uniques/NPCs Destroyed . | . . . . . . . . . Combat | -11 -10 -10 -8 -8 -6 -6 -6 -6 -------- Run | Yrd Mat Sub Rec Scr Fac Low Low Dat Hostile Shots Fired 484 | . 29 89 . . 328 3 . 35 Missed 146 | . 6 30 . . 102 . . 8 Hits 338 | . 23 59 . . 226 3 . 27 Melee 3 | . . . . . 3 . . . Projectile 335 | . 23 59 . . 223 3 . 27 Critical Strikes 12 | . . 2 . . 10 . . . Actively Blocked 1 | . . . . . 1 . . . Damage Taken 6035 | . 213 1036 . . 3606 49 . 1131 Core 1124 | . 70 162 . . 523 . . 369 Absorbed by Shields 66 | . . . . . 28 . . 38 Redirected to Shielding 202 | . . . . . 202 . . . Ignored by Resistances 199 | . . . . . 119 . . 80 Core Remaining (%) 53 | 100 . . . 7 . . . . Volleys Fired 288 | 5 38 94 2 . 128 7 . 14 Largest 2 | 2 2 2 2 . 2 1 . 2 Hottest 160 | 60 100 160 160 . 113 44 . 97 Shots Fired 393 | 10 66 155 4 . 126 7 . 25 Gun 296 | 10 57 103 . . 104 . . 22 Cannon 64 | . . 45 4 . 8 7 . . Launcher 20 | . 4 2 . . 14 . . . Special 13 | . 5 5 . . . . . 3 Kinetic 159 | 5 29 40 . . 67 7 . 11 Thermal 204 | 5 33 114 4 . 37 . . 11 Explosive 19 | . 4 1 . . 14 . . . Electromagnetic 8 | . . . . . 8 . . . Robot Hit Streak 28 | 4 9 28 . . 15 4 . 5 Robot Miss Streak 5 | 2 3 3 . . 5 . . 2 Penetration Max 1 | . . . . . 1 . . . Secondary Targets 2 | . . 2 . . . . . . Max Gunslinging Chain 1 | . . 1 . . . . . . Shots Hit Robots 296 | 7 37 89 . 4 136 6 . 17 Core Hits 221 | 3 18 31 . . 161 2 . 6 Critical Kills 4 | . . 2 . . 2 . . . Critical Parts Destroyed 4 | . 1 . . . 3 . . . Critical Strikes 18 | . 1 2 . . 15 . . . Burn 4 | . . . . . 4 . . . Meltdown 2 | . . 2 . . . . . . Destroy 6 | . 1 . . . 5 . . . Sever 6 | . . . . . 6 . . . Melee Attacks 81 | . . . . 4 55 2 . 20 Impact . | . . . . . . . . . Slashing 56 | . . . . . 54 2 . . Piercing 20 | . . . . . . . . 20 Sneak Attacks 10 | . . . . 4 5 . . 1 Combat Hostiles . | . . . . . . . . . Follow-up Attacks . | . . . . . . . . . Damage Inflicted 8669 | 69 527 2039 . . 5491 251 . 292 Guns 3768 | 69 369 1391 . . 1707 . . 232 Cannons 658 | . . 420 . . 115 123 . . Explosions 2399 | . 155 228 . . 2016 . . . Melee 1841 | . . . . . 1653 128 . 60 Ramming 3 | . 3 . . . . . . . Kinetic 2493 | 26 154 858 . . 1230 123 . 102 Thermal 2202 | 43 215 1101 . . 713 . . 130 Explosive 2015 | . 155 80 . . 1780 . . . Electromagnetic 115 | . . . . . 115 . . . Impact . | . . . . . . . . . Slashing 1781 | . . . . . 1653 128 . . Piercing 60 | . . . . . . . . 60 Highest Corruption 5 | . 1 1 1 . 5 5 5 5 Average Corruption 2 | . 1 1 1 . 4 5 5 5 Corruption Purged . | . . . . . . . . . Corruption Blocked . | . . . . . . . . . Effects 106 | . 5 25 3 . 31 24 13 5 Message Errors 31 | . 1 9 . . 8 8 4 1 Matter Fused 22 | . . 6 1 . 3 8 2 2 Heat Flow Errors 10 | . . 3 . . 3 1 1 2 Energy Discharges 15 | . 2 5 . . 4 2 2 . Parts Rejected 3 | . . . . . 3 . . . Parts Fused 1 | . 1 . . . . . . . Data Loss (minor) 10 | . . 1 1 . 2 4 2 . Data Loss (major) 6 | . . 1 1 . 1 1 2 . Alerts 3 | . . . . . 3 . . . Weapon Failures 5 | . 1 . . . 4 . . . Overload Shots . | . . . . . . . . . Overflow Damage 279 | . 4 25 . . 212 38 . . Projectiles 13 | . . . . . . 13 . . Explosions 145 | . 4 25 . . 116 . . . Melee 121 | . . . . . 96 25 . . Knockbacks . | . . . . . . . . . Impact . | . . . . . . . . . Kinetic . | . . . . . . . . . Secondary . | . . . . . . . . . Self-Inflicted Damage 345 | . 24 15 . . 306 . . . Shots 10 | . 1 1 . . 8 . . . Rammed 1 | . 1 . . . . . . . Targets Rammed 1 | . 1 . . . . . . . Kicked . | . . . . . . . . . Crushed . | . . . . . . . . . Highest Temperature 402 | 20 40 198 198 . 402 124 125 194 Average Temperature 86 | 15 17 35 105 . 139 71 74 71 Received Heat Transfer 1575 | . . 120 . . 1455 . . . Effects 2 | . . . . . 2 . . . Energy Bleed 1 | . . . . . 1 . . . Short Circuit 1 | . . . . . 1 . . . Siege Activations . | . . . . . . . . . Martial Activations . | . . . . . . . . . Shielding Activations . | . . . . . . . . . Robots Disrupted . | . . . . . . . . . Combat Hostiles . | . . . . . . . . . Robots Corrupted . | . . . . . . . . . Combat Hostiles . | . . . . . . . . . Parts Fried . | . . . . . . . . . Impact Corruptions . | . . . . . . . . . Robots Melted 5 | . . 2 . . 3 . . . Combat Hostiles 4 | . . 1 . . 3 . . . Parts Melted 6 | . . 3 . . 3 . . . Heat Transferred 4295 | 100 475 1615 . . 1735 . . 370 Parts Sabotaged . | . . . . . . . . . Parts Stolen . | . . . . . . . . . Parts Stripped . | . . . . . . . . . Power Chain Reactions . | . . . . . . . . . Alert | -11 -10 -10 -8 -8 -6 -6 -6 -6 ------- Run | Yrd Mat Sub Rec Scr Fac Low Low Dat Maximum Alert Level 1 | . . . . . 1 . . . Low Security (%) 86 | 100 100 . 100 . 72 . . . Level 1 13 | . . . . . 27 . . . Level 2 . | . . . . . . . . . Level 3 . | . . . . . . . . . Level 4 . | . . . . . . . . . Level 5 . | . . . . . . . . . High Security . | . . . . . . . . . Max Security . | . . . . . . . . . Peak Influence 369 | 5 111 . 47 . 369 . . . Initial 16 | . . . 16 . . . . . Average 82 | 3 22 . 13 . 142 . . . Influence Increases 1788 | 10 270 245 132 . 1111 20 . . Destroy 0b10 Robot/C 900 | . 120 160 . . 620 . . . Destroy 0b10 Robot/NC 130 | 10 30 . . . 85 5 . . Destroy Leader 156 | . 24 10 . . 122 . . . Successful Hack 72 | . 49 . 9 . 14 . . . Select Force Hacks 120 | . . . 120 . . . . . Disable Machine 60 | . . . . . 60 . . . Destroy Structure 125 | . 32 . 3 . 90 . . . Lose Combat Pursuer 225 | . 15 75 . . 120 15 . . Influence Decreases 1788 | 10 270 209 168 . 760 371 . . Entered New Map 151 | . . . 20 . . 131 . . Time Decay 1314 | 10 270 179 148 . 467 240 . . Lost Part 323 | . . 30 . . 293 . . . Squads Dispatched 11 | . . . . . 11 . . . Investigation 3 | . . . . . 3 . . . Extermination 3 | . . . . . 3 . . . Reinforcement 5 | . . . . . 5 . . . Assault . | . . . . . . . . . Garrison . | . . . . . . . . . Intercept . | . . . . . . . . . Searches Triggered . | . . . . . . . . . Construction Impeded 2 | . . . . . 2 . . . Haulers Reinforced 1 | . . . . . 1 . . . Active Scanning Responses . | . . . . . . . . . Cargo Convoy Interrupts 1 | . . . . . 1 . . . Stealth | -11 -10 -10 -8 -8 -6 -6 -6 -6 --------- Run | Yrd Mat Sub Rec Scr Fac Low Low Dat Distress Signals 2 | . . . . . 2 . . . Communications Jammed . | . . . . . . . . . Distress Signals . | . . . . . . . . . Times Spotted 84 | . 11 24 . . 44 1 . 4 Peak Tracking Total 9 | . 4 4 . . 9 1 . 4 Tactical Retreats 9 | . 1 3 . . 4 1 . . Traps | -11 -10 -10 -8 -8 -6 -6 -6 -6 ------- Run | Yrd Mat Sub Rec Scr Fac Low Low Dat Traps Triggered 1 | . 1 . . . . . . . Indirectly . | . . . . . . . . . Trap Hack Attempts . | . . . . . . . . . Triggered . | . . . . . . . . . Disarmed . | . . . . . . . . . Reprogrammed . | . . . . . . . . . Reused . | . . . . . . . . . Traps Extracted . | . . . . . . . . . Installed . | . . . . . . . . . Triggered . | . . . . . . . . . Machines | -11 -10 -10 -8 -8 -6 -6 -6 -6 ---------- Run | Yrd Mat Sub Rec Scr Fac Low Low Dat Machines Disabled 9 | . . 4 . . 4 . . 1 Max in Single Turn 3 | . . 3 . . 2 . . 1 Garrison Access 2 | . . . . . 2 . . . Machines Repaired . | . . . . . . . . . Machines Dismantled . | . . . . . . . . . Machines Sabotaged . | . . . . . . . . . Overloaded Fab Kills . | . . . . . . . . . Hacking | -11 -10 -10 -8 -8 -6 -6 -6 -6 --------- Run | Yrd Mat Sub Rec Scr Fac Low Low Dat Machines Accessed 31 | . 6 1 7 3 8 . 2 4 Terminals 11 | . 6 . 3 . 2 . . . Fabricators 1 | . . . . . 1 . . . Repair Stations . | . . . . . . . . . Recycling Units 7 | . . . 4 . 3 . . . Scanalyzers . | . . . . . . . . . Garrison Access 2 | . . . . . 2 . . . Total Hacks 109 | . 26 1 17 11 18 . 5 31 Successful 85 | . 18 1 9 11 10 . 5 31 Failed 24 | . 8 . 8 . 8 . . . Catastrophic . | . . . . . . . . . Database Lockouts . | . . . . . . . . . Manual 37 | . 22 . 10 . 5 . . . Terminals 38 | . 26 . 7 . 5 . . . Fabricators 1 | . . . . . 1 . . . Repair Stations . | . . . . . . . . . Recycling Units 20 | . . . 10 . 10 . . . Scanalyzers . | . . . . . . . . . Garrison Access 2 | . . . . . 2 . . . Terminal Hacks 61 | . 11 1 1 11 1 . 5 31 Record 21 | . . . . 6 . . 4 11 Part Schematic 11 | . 1 . . . . . . 10 Robot Schematic 8 | . 1 . . . . . . 7 Robot Analysis 11 | . 5 . 1 5 . . . . Prototype ID Bank 5 | . 2 . . . . . . 3 Open Door 1 | . . . . . . . 1 . Branch Access Points 1 | . . . . . 1 . . . Hauler Manifests 1 | . 1 . . . . . . . Zone Layout 1 | . 1 . . . . . . . Proto ID Catalog 1 | . . 1 . . . . . . Fabricator Hacks 1 | . . . . . 1 . . . Network Status 1 | . . . . . 1 . . . Repair Station Hacks . | . . . . . . . . . Recycling Unit Hacks 4 | . . . 2 . 2 . . . Retrieve Components 4 | . . . 2 . 2 . . . Scanalyzer . | . . . . . . . . . Garrison Access Hacks 2 | . . . . . 2 . . . Seal Access 2 | . . . . . 2 . . . Unauthorized Hacks 17 | . 7 . 6 . 4 . . . Terminals 10 | . 7 . 2 . 1 . . . Botnet 4 | . 1 . 2 . 1 . . . Operators 1 | . 1 . . . . . . . Skim 5 | . 5 . . . . . . . Fabricators . | . . . . . . . . . Repair Stations . | . . . . . . . . . Recycling Units 7 | . . . 4 . 3 . . . Tunnel 4 | . . . 4 . . . . . Fedlink 2 | . . . . . 2 . . . Scrapoids 1 | . . . . . 1 . . . Scanalyzers . | . . . . . . . . . Garrison Access . | . . . . . . . . . Data Cores Recovered . | . . . . . . . . . Used . | . . . . . . . . . Hacking Detections 15 | . 6 . 6 . 3 . . . Full Trace Events . | . . . . . . . . . Feedback Events . | . . . . . . . . . Feedback Blocked . | . . . . . . . . . Robot Schematics Acquired 8 | . 1 . . . . . . 7 Robots Built . | . . . . . . . . . Authchips . | . . . . . . . . . Time . | . . . . . . . . . Total Robot Build Rating . | . . . . . . . . . Part Schematics Acquired 11 | . 1 . . . . . . 10 Parts Built . | . . . . . . . . . Authchips . | . . . . . . . . . Time . | . . . . . . . . . Total Part Build Rating . | . . . . . . . . . Parts Repaired . | . . . . . . . . . Time . | . . . . . . . . . Parts Recycled . | . . . . . . . . . Recycled Matter . | . . . . . . . . . Retrieved Matter . | . . . . . . . . . Retrieved Components 5 | . . . . . 5 . . . Parts Scanalyzed . | . . . . . . . . . Part Schematics Acquired . | . . . . . . . . . Parts Damaged . | . . . . . . . . . Bothacking | -11 -10 -10 -8 -8 -6 -6 -6 -6 ------------ Run | Yrd Mat Sub Rec Scr Fac Low Low Dat Used RIF Installer . | . . . . . . . . . Robots Hacked 6 | . . . . 4 1 . . 1 Non-combat 1 | . . . . . 1 . . . Combat 5 | . . . . 4 . . . 1 Robot Hacks Applied 6 | . . . . 4 1 . . 1 parse_system 5 | . . . . 4 . . . 1 find_chute 1 | . . . . . 1 . . . Relay Couplers Released . | . . . . . . . . . Fabnet Peak Effective % . | . . . . . . . . . Robots Rewired . | . . . . . . . . . Allies Hacked . | . . . . . . . . . Hacks Repelled . | . . . . . . . . . Allies | -11 -10 -10 -8 -8 -6 -6 -6 -6 -------- Run | Yrd Mat Sub Rec Scr Fac Low Low Dat Total Allies 2 | . . . . . . . 2 . Largest Group 2 | . . . . . . . 2 . Highest-Rated Group 51 | . . . . . . . 51 . Highest-Rated Ally 31 | . . . . . . . 31 . Total Orders . | . . . . . . . . . Ally Attacks . | . . . . . . . . . Total Damage . | . . . . . . . . . Kills . | . . . . . . . . . Allies Corrupted . | . . . . . . . . . Allies Melted 1 | . . 1 . . . . . . Intel | -11 -10 -10 -8 -8 -6 -6 -6 -6 ------- Run | Yrd Mat Sub Rec Scr Fac Low Low Dat Active Infowar (turns) 11840 | 11 1159 3658 433 3574 1433 808 520 244 Sensors 2159 | . . . . . 587 808 520 244 Structural 48 | . . . . . 48 . . . Seismic 9843 | 11 1159 3658 433 3573 1009 . . . ECM 178 | . . . . 1 177 . . . Robot Analysis Total 11 | . 5 . 1 5 . . . . Derelict Logs Recovered 7 | . . . . 5 . 2 . . Drone Launches . | . . . . . . . . . Drone Recoveries . | . . . . . . . . . Exploration | -11 -10 -10 -8 -8 -6 -6 -6 -6 ------------- Run | Yrd Mat Sub Rec Scr Fac Low Low Dat Turns Passed 12463 | 41 1201 3894 436 3576 1739 808 520 248 Spaces Moved 6262 | 20 399 1720 318 1695 849 696 448 117 Core 4 | . . . . . 4 . . . Treads 860 | . 315 545 . . . . . . Legs 3110 | 20 84 . . 1243 502 696 448 117 Wheels 2288 | . . 1175 318 452 343 . . . Hover . | . . . . . . . . . Flight . | . . . . . . . . . Fastest Speed 105 | 120 120 130 130 130 105 112 112 112 Average Speed 173 | 120 257 196 130 207 126 112 112 113 Slowest Speed 480 | 120 320 480 130 260 350 112 112 190 Overloaded Moves . | . . . . . . . . . Propulsion Burnouts . | . . . . . . . . . Robots Hopped . | . . . . . . . . . Potential Cave-ins . | . . . . . . . . . Cave-ins Triggered . | . . . . . . . . . Exploration Rate (%) 62 | 2 72 82 62 88 18 78 83 78 Regions Visited 8 Branch Regions 6 Pre-discovered Areas 7 | . . 1 4 . 1 . . 1 Known Exits Taken 4 | . 1 . . . 1 1 1 . Unknown Exits Taken 4 | 1 . 1 1 1 . . . . Scrap Searched 20 | . . 9 . 8 . 1 2 . Spaces Dug 67 | . 5 10 4 . 46 2 . . Terrain Destroyed 168 | . 31 27 4 . 104 2 . . Melee 12 | . . . . . 12 . . . Projectile 11 | . . 5 4 . . 2 . . AOE 145 | . 31 22 . . 92 . . . Terrain Rammed . | . . . . . . . . . Walls Destroyed . | . . . . . . . . . Machines Disabled . | . . . . . . . . . Actions | -11 -10 -10 -8 -8 -6 -6 -6 -6 --------- Run | Yrd Mat Sub Rec Scr Fac Low Low Dat Total 7309 | 27 502 2052 336 1768 1272 716 466 170 Wait 384 | 1 40 172 1 10 134 3 13 10 Move 6254 | 19 398 1719 317 1694 848 695 447 117 Hop . | . . . . . . . . . Pick Up 78 | 1 6 23 4 19 20 4 1 . Fast Attach 37 | 1 . 1 2 2 28 1 2 . Attach 33 | . 2 5 . 1 20 . . 5 Detach 12 | . 2 . 1 2 6 . . 1 Swap 79 | . 9 33 4 4 25 1 . 3 Drop 62 | . 6 5 5 32 8 3 3 . Fire 288 | 5 38 94 2 . 128 7 . 14 Melee 81 | . . . . 4 55 2 . 20 Ram . | . . . . . . . . . Kick . | . . . . . . . . . Crush 1 | . 1 . . . . . . . Escape Stasis . | . . . . . . . . . Rewire . | . . . . . . . . . Trap . | . . . . . . . . . Miscellaneous . | . . . . . . . . . Route ------- -11/Scrapyard -10/Materials (discovered 6 exits: *Mat x3 / [*Min x2] / *Sub) -10/Subcaves (discovered 3 exits: *Mat x2 / *Rec) -8/Recycling (discovered 2 exits: *Fac / *Scr) -8/Scraptown (discovered 2 exits: *Fac x2) -6/Factory (discovered 3 exits: Fac / *Low x2) -6/Lower Caves -6/Lower Caves (discovered 2 exits: *Fac / *Dat) -6/Data Miner (discovered 1 exit: [*Pro]) History --------- Turn | Location | Event 1 | -11/Scrapyard | Discovered new exit (range 2) 42 | -11/Scrapyard | Entered Materials 83 | -10/Materials | Discovered new exit (range 15) 158 | -10/Materials | Discovered new exit (range 13) 311 | -10/Materials | Build established: Mutant 400 | -10/Materials | Discovered new exit (range 10) 448 | -10/Materials | Learned Recycling recycling unit intel 529 | -10/Materials | Learned 2 Storage zone layouts 602 | -10/Materials | Identified exit to Materials 663 | -10/Materials | Learned Storage trap positions 752 | -10/Materials | Learned 4 Subcaves zone layouts 783 | -10/Materials | Learned Storage stockpile data 879 | -10/Materials | Learned location of 2 exits from Mines 944 | -10/Materials | Identified exit to Subcaves 1020 | -10/Materials | Learned Storage stockpile data 1243 | -10/Materials | Entered Subcaves 1244 | -10/Subcaves | Approached by a straggling Scientist 1244 | -10/Subcaves | Identified exit to Materials 1339 | -10/Subcaves | A swath of the cavern ceiling suddenly collapsed 1490 | -10/Subcaves | Shifting Twisted Machinery released Sub. Laser 2617 | -10/Subcaves | Shifting Twisted Machinery released Flamer 2621 | -10/Subcaves | Shifting Twisted Machinery released Riot Gun 3005 | -10/Subcaves | Core integrity fell below 50% 3332 | -10/Subcaves | Discovered new exit (range 13) 3432 | -10/Subcaves | Ambushed by angry Subdweller bent on revenge 3444 | -10/Subcaves | Core integrity fell below 20% 3656 | -10/Subcaves | Build established: Scavenger-Mutant 3798 | -10/Subcaves | Shifting Twisted Machinery released Battle Rifle 3801 | -10/Subcaves | Shifting Twisted Machinery released Sub. Monowheel 3918 | -10/Subcaves | Learned location of Zion (-7) 3918 | -10/Subcaves | Met a Zionite searching for "candidates" 4452 | -10/Subcaves | Visited 4L-MR0's lab 4465 | -10/Subcaves | Found Gun Armor 4505 | -10/Subcaves | Build established: Mutant 5137 | -10/Subcaves | Entered Recycling 5138 | -8/Recycling | Loaded intel: 6 recycling unit locations 5506 | -8/Recycling | Discovered new exit (range 15) 5537 | -8/Recycling | Scanned before Scraplab entrance 5558 | -8/Recycling | Entered Scraplab 5570 | -8/Recycling | Discovered new exit (range 2) 5573 | -8/Recycling | Entered Scraptown 5573 | -8/Scraptown | System corruption cleaned by C-Scrubber 5766 | -8/Scraptown | Scanned Subdweller tech in exchange for log data 5768 | -8/Scraptown | Learned location of 1 exit from Research 5770 | -8/Scraptown | Learned location of 1 exit from Factory 5771 | -8/Scraptown | Learned Research emergency access door positions 5772 | -8/Scraptown | Learned Research trap positions 5774 | -8/Scraptown | Learned Research stockpile data 6460 | -8/Scraptown | Visited Fellowship of the Rings 6481 | -8/Scraptown | Visited Symbiants 6573 | -8/Scraptown | Visited Bundlers 6810 | -8/Scraptown | Discovered new exit (range 13) 6958 | -8/Scraptown | Visited IN-MT5's Study 6997 | -8/Scraptown | Visited TADAMA 7051 | -8/Scraptown | Visited Spacefarers 7079 | -8/Scraptown | Visited UFD Registry 7079 | -8/Scraptown | Registered with UFD as "Bioroller" 7167 | -8/Scraptown | Visited Scrapoid Research Area 7206 | -8/Scraptown | Visited Chapter 10 7276 | -8/Scraptown | Visited Curators Association 7362 | -8/Scraptown | Visited Scrap Suit Storage 7396 | -8/Scraptown | Visited Analyses Database 7453 | -8/Scraptown | Visited Junk Repository 7536 | -8/Scraptown | Visited Abandonware Association 7565 | -8/Scraptown | Learned abandonware demo "ERRANTS.EXE" 9003 | -8/Scraptown | Met Optimus 9003 | -8/Scraptown | Accepted into 0bPrime 9065 | -8/Scraptown | Visited A0-MCA Data Center 9077 | -8/Scraptown | Given a C- rating by A0-MCA 9083 | -8/Scraptown | Found A0-MCA's Component Scanner 9141 | -8/Scraptown | Discovered new exit (range 5) 9149 | -8/Scraptown | Entered Factory 9149 | -6/Factory | Evolved 8 slots: Power x1, Propulsion x2, Utility x5 9150 | -6/Factory | Identified exit to Factory 9274 | -6/Factory | Identified exit to Lower Caves 9385 | -6/Factory | Loaded intel: 8 recycling unit locations 9529 | -6/Factory | Build established: Hacker-Mutant 9722 | -6/Factory | Lost 3 parts (1n1u1w) 9732 | -6/Factory | Learned location of Protoforge (-2) 9822 | -6/Factory | Lost 5 parts (4u1w) 9912 | -6/Factory | Lost 14 parts (3p5n3u3w) 10227 | -6/Factory | Build established: Scavenger-Mutant 10254 | -6/Factory | Core integrity fell below 50% 10807 | -6/Factory | Cargo convoy interrupted 10888 | -6/Factory | Entered Lower Caves 10939 | -6/Lower Caves | Encountered a Warlord checkpoint 11049 | -6/Lower Caves | Learned Factory trap positions 11346 | -6/Lower Caves | Spotted B-75 Beast 11432 | -6/Lower Caves | Learned location of 1 exit from Proximity Caves 11591 | -6/Lower Caves | Discovered new exit (range 5) 11595 | -6/Lower Caves | Identified exit to Lower Caves 11696 | -6/Lower Caves | Entered another Lower Caves area 11757 | -6/Lower Caves | Discovered exit to Factory (range 14) 12038 | -6/Lower Caves | Discovered new exit (range 15) 12054 | -6/Lower Caves | Identified exit to Data Miner 12088 | -6/Lower Caves | Entered an active Warlord outpost 12091 | -6/Lower Caves | A Commander dispatched an escort 12106 | -6/Lower Caves | Learned location of 1 exit from Factory 12106 | -6/Lower Caves | Learned Research security intel 12216 | -6/Lower Caves | Entered Data Miner 12216 | -6/Data Miner | Accompanied by 2 allies 12216 | -6/Data Miner | Discovered new exit (range 7) 12217 | -6/Data Miner | Commander's escort returned to base 12238 | -6/Data Miner | Met Data Miner 12275 | -6/Data Miner | Learned location of Section 7 (-2) 12275 | -6/Data Miner | Acquired the access code to Warlord's prototype stash 12292 | -6/Data Miner | Received God Mode back door access code from Data Miner 12309 | -6/Data Miner | Data Conduit disabled 12460 | -6/Data Miner | Core integrity fell below 20% 12464 | -6/Data Miner | Destroyed by Enhanced Grunt with Neutron Cannon Last Messages --------------- 12327_ Discarded Target Analyzer. 12363_ System corrupted: Matter fused (-6). 12384_ System corrupted: Matter fused (-7). 12427_ System corrupted: Heat flow error (+176). 12430_ Reflective Plating destroyed. 12445_ DL5IJUDK5R4ZLVEYZHN8WNS5O 12445_ Imp. Reaction Control System destroyed. 12451_ Lgt. Angular Momentum Engine destroyed. 12452_ Imp. VSS Leg destroyed. 12452_ Reflective Plating destroyed. 12453_ Adv. Heat Sink destroyed. 12454_ Carbon-fiber Leg destroyed. 12454_ Remote Shield destroyed. 12454_ Lgt. Angular Momentum Engine destroyed. 12456_ Carbon-fiber Leg destroyed. 12456_ Imp. Deuterium Engine destroyed. 12456_ Carbon-fiber Leg destroyed. 12459_ Hvy. Laser destroyed. 12460_ Adv. Sensor Array destroyed. 12460_ Barrage Gun destroyed. Map ----- +----------------------------------------------------+ | | | | | | | | | | | | | | | | | | | | | | | | | | | | | | | | | ???????????????????????????????????? | | ???????????????????????????????????? | | ???????????????????????????????????? | | ???????????????????????????????????? | | ??????????###??????????????????????? | | ????#######;#########??????????????# | | ???##"" g """""""######????????## | | ??##"" "g "" """"""""########## | | ??#"" """ " | | ??#" """" @g | | ??# """"" | | ??#" """" g | | ??# """"" | | ??#" """ " """""""""""" | | ??# """ """ """"########## | | ??## " """" """""###????????? | | ???## """"""" "#####??????????? | | ????########"## "#??????????????? | | ???????????#"### "#??????????????? | | ???????????#"### "#??????????????? | | ???????????#"?# "#??????????????? | | ?????????????## "#??????????????? | | ?????????????# "#??????????????? | | ?????????????### "#??????????????? | | ???????????????# "##?????????????? | | ??????????????## ""#?????????????? | | ?????????????## ""#?????????????? | | ??????????##"#"X ""#?????????????? | | ??????????""""" "####??????????? | | ??????????""""" X"""""??????????? | | ??????????##"#"X "##"???????????? | | ???????????#?## X""""#??????????? | | ??????????????## "##"#??????????? | | ???????????????#######?????????????? | +----------------------------------------------------+ Best States ------------- Heat Dissipation 59 Energy Generation 31 Energy Capacity 450 Matter Stores 300 Matter Capacity 300 Sight Range 16 Robot Scan Range 16 Terrain Scan Density 10 ECM Strength 2 Armor Coverage 525 Resistance: TH 10 Propulsion Shielding 66 Evasion (%) 65 Target Analysis 7 Recoil Reduction 2 Salvage Targeting 4 Offensive Hacking 10 Defensive Hacking 20 Item Schematics ----------------- Huge Storage Unit | -10/Materials | Hacked Combat Drone Bay | -6/Data Miner | Free Lgt. Regenerative Plating | -6/Data Miner | Free Enh. Flexi-carbon Leg | -6/Data Miner | Free Prc. Energy Filter | -6/Data Miner | Free Neutron Cannon | -6/Data Miner | Free Imp. Linear Gravjet | -6/Data Miner | Free Adv. Thermal Generator | -6/Data Miner | Free Micro-nuke Launcher | -6/Data Miner | Free Lance | -6/Data Miner | Free Railgun | -6/Data Miner | Free Robot Schematics ------------------ M-13 Machinist | -10/Materials | Hacked L-41 Fighter | -6/Data Miner | Free B-60 Warrior | -6/Data Miner | Free X-62 Marksman | -6/Data Miner | Free G-50 Soldier | -6/Data Miner | Free A-27 Freighter | -6/Data Miner | Free H-77 Assassin | -6/Data Miner | Free G-67 Veteran | -6/Data Miner | Free Fabricated ------------ Nothing Repaired ---------- Nothing Alien Tech Used ----------------- None Achievements -------------- None Challenges ------------ None Game ------ Seed DynamicTiamatThrower Manual? 0 Play Time 01:03:56 Cumulative 456.4 hours Start 2025.06.18 @ 15:54:03 End 2025.06.18 @ 16:58:13 Sessions 1 Manual Loads 0 Difficulty Rogue Special Mode None Game No. 235 Rogue 172 Adventurer 63 Explorer 0 Win Type - Total 9 Types 8/0/0/1/0/0/0/0/0/0 Lore% 89 Gallery% 80 Achievement% 66 Wizard Run 0 Options --------- Layout 2 ASCII 0 Keyboard 1 Movement Numpad Keybinds 0 Fullscreen 2 Font 24/Terminus Map View 50x44 Zoom Use 0% Tactical HUD 1 Map Filters NONE Filters NONE Steam 1 RUN: d7fae7f1-74f1-457e-befe-60eea6528d25